bitfinex-derivatives/quotes_ETHF0:USTF0_20250620
["timestamp","ask_amount","ask_price","bid_price","bid_amount"]
[1750428168362,0.78808,2537.6,2537.5,6.921]
[1750428168662,0.78805,2537.7,2537.3,5.2948]
[1750428168873,0.78804,2537.7,2537.6,3.2078]
[1750428169363,0.78804,2537.7,2537.2,2.0105]
[1750428169364,0.78817,2537.3,2537.2,2.0105]
[1750428169558,0.78823,2537.1,2537.0,9.75125]
[1750428169866,0.78822,2537.2,2537.1,0.78822]
[1750428170167,1.97036,2537.4,2536.9,3.2078]
[1750428170363,0.78824,2537.1,2537.0,0.78823]
[1750428170557,0.78821,2537.2,2537.1,0.78821]
[1750428171062,0.78819,2537.3,2537.2,0.78818]
[1750428171266,25.252,2537.6,2537.2,10.1288]
[1750428171462,1.26038577,2537.5,2537.4,0.78811]
[1750428171957,0.78806,2537.7,2537.6,0.78808]
[1750428172158,1.26046612,2537.7,2537.6,0.78808]
[1750428172353,1.26178813,2537.8,2537.5,3.2078]
[1750428172558,0.78796,2538.0,2537.9,0.78798]
[1750428172760,1.26186154,2538.0,2537.9,0.78798]
[1750428173264,0.78786,2538.3,2538.2,0.78786]
[1750428173658,2.04951699,2538.3,2538.2,0.78786]
[1750428173853,2.04951699,2538.3,2538.2,2.1746]
[1750428174266,1.26165699,2538.3,2538.2,2.96249]
[1750428174563,1.26128108,2538.3,2538.2,2.96247]
[1750428177066,0.78782,2538.5,2538.4,0.78783]
[1750428177363,0.78786,2538.3,2538.2,2.96247]
[1750428177565,0.78786,2538.3,2538.1,10.1278]
[1750428177566,0.78784,2538.4,2538.3,0.78784]
[1750428177754,0.78781,2538.5,2538.4,0.78781]
[1750428177955,2.04770259,2538.5,2538.4,0.78781]
[1750428178160,0.78785,2538.4,2538.3,0.78784]
[1750428178358,0.78786,2538.3,2538.2,2.88548]
[1750428178762,0.78782,2538.5,2538.4,0.78781]
[1750428178970,1.2595127,2538.5,2538.4,3.99561]
[1750428179160,0.78779,2538.6,2538.5,0.7878]
[1750428179866,2.04696574,2538.6,2538.5,0.7878]
[1750428180063,0.78783,2538.4,2538.3,2.1559]
[1750428180565,0.78789,2538.2,2538.1,3.2078]
[1750428180771,0.78789,2538.2,2538.1,3.99572]
[1750428180965,0.78789,2538.2,2538.1,3.2078]
[1750428181863,0.78798,2537.9,2537.8,3.9958]
[1750428182066,0.78798,2537.9,2537.8,3.2078]
[1750428182364,0.78808,2537.6,2537.5,5.0]
[1750428182565,44.19612487,2537.6,2537.5,4.7188383]
[1750428182769,49.19612487,2537.6,2537.5,4.7188383]
[1750428183062,49.19612487,2537.6,2536.2,11.98017143]
[1750428183063,0.78835,2536.8,2536.3,4.0552]
[1750428183267,0.78834,2536.8,2536.5,6.3617]
[1750428183467,25.234,2536.9,2536.5,7.15011]
[1750428183664,0.78838,2536.7,2536.5,8.94231]
[1750428183863,0.78835,2536.8,2536.6,0.78839]
[1750428184164,25.234,2536.9,2536.6,0.78837]
[1750428184365,0.78838,2536.7,2536.5,11.3617]
[1750428184570,0.78839,2536.6,2536.5,8.1539]
[1750428184765,2.84119,2536.6,2536.5,8.1539]
[1750428185063,4.0995813,2536.6,2536.5,8.1539]
[1750428185671,20.25560937,2536.6,2536.5,8.1539]
[1750428186465,4.0995813,2536.6,2536.5,8.1539]
[1750428187173,1.2583913,2536.6,2536.5,8.94232]
[1750428187365,27.2817813,2536.6,2536.5,8.1539]
[1750428187873,26.4933913,2536.6,2536.5,8.94232]
[1750428188372,26.02339,2536.6,2536.5,8.1539]
[1750428188565,26.4946368,2536.6,2536.5,8.94232]
[1750428188772,25.235,2536.6,2536.5,8.94232]
[1750428188971,27.28302779,2536.6,2536.5,8.1539]
[1750428189167,25.235,2536.6,2536.5,8.94232]
[1750428189367,26.02428,2537.0,2536.8,0.78831]
[1750428189572,1.26265999,2536.9,2536.8,0.78831]
[1750428189774,1.26265999,2536.9,2536.7,0.78833]
[1750428189980,2.05100999,2536.8,2536.6,0.78837]
[1750428190171,25.236,2537.0,2536.5,13.4371]
[1750428190476,1.26275521,2536.9,2536.6,0.78838]
[1750428190767,0.78838,2536.7,2536.5,8.9423]
[1750428190967,26.02339,2536.6,2536.5,8.1539]
[1750428191369,0.78838,2536.7,2536.5,8.94232]
[1750428191676,26.02336,2536.7,2536.6,0.78839]
[1750428191878,25.235,2536.7,2536.6,0.78839]
[1750428192066,0.78828,2537.0,2536.5,10.12493]
[1750428192374,26.02226,2537.1,2536.9,0.78826]
[1750428192568,3.2078,2537.2,2536.6,4.14705]
[1750428192569,25.236,2537.2,2536.8,3.2078]
[1750428192768,25.236,2537.2,2537.1,0.78823]
[1750428192966,26.49859667,2537.2,2537.1,0.78823]
[1750428193265,25.235,2537.6,2537.4,0.78813]
[1750428193466,1.2626488,2537.5,2537.4,0.78813]
[1750428193666,0.78812,2537.5,2537.4,0.78812]
[1750428193869,25.235,2537.6,2537.5,0.78811]
[1750428194072,0.78808,2537.6,2537.5,0.78811]
[1750428194273,25.235,2537.8,2537.7,0.78804]
[1750428194575,1.26236502,2537.8,2537.7,0.78804]
[1750428194767,25.234,2538.2,2537.7,3.2078]
[1750428194968,0.788,2537.9,2537.7,3.1524]
[1750428195172,25.234,2538.2,2537.7,6.3602]
[1750428195372,14.21072,2538.4,2537.9,0.78796]
[1750428195373,1.26241807,2538.1,2537.9,0.78796]
[1750428195574,1.26241807,2538.0,2537.9,0.78798]
[1750428195764,0.78792,2538.1,2538.0,0.78793]
[1750428196070,32.145,2538.4,2538.1,0.78792]
[1750428196269,32.145,2538.4,2538.2,0.78789]
[1750428196270,2.05033459,2538.3,2538.2,0.78789]
[1750428196468,2.05033459,2538.3,2538.0,3.2078]
[1750428196672,25.232,2538.6,2538.3,0.78784]
[1750428196877,1.26258109,2538.5,2538.1,2.0346]
[1750428197177,0.78782,2538.5,2538.3,3.99564]
[1750428197373,0.78783,2538.4,2538.3,3.99564]
[1750428197571,0.78783,2538.4,2538.3,3.2078]
[1750428197773,0.78789,2538.2,2538.1,5.0]
[1750428198171,0.78781,2538.5,2538.3,0.78784]
[1750428198376,25.232,2538.6,2538.3,0.78784]
[1750428198575,0.7878,2538.5,2538.3,0.78784]
[1750428198873,25.232,2538.6,2538.4,0.78783]
[1750428199078,25.227,2538.7,2538.3,2.0346]
[1750428199277,25.227,2538.7,2538.2,3.2078]
[1750428199278,0.78786,2538.3,2538.2,3.2078]
[1750428199474,0.78789,2538.2,2538.1,5.0]
[1750428199666,0.78789,2538.2,2538.1,5.78791]
[1750428199873,27.19636,2538.7,2538.2,0.78789]
[1750428200076,0.78786,2538.3,2538.2,2.89899]
[1750428200277,0.78786,2538.3,2538.2,2.1111]
[1750428200579,25.227,2538.7,2538.4,0.7878]
[1750428200776,0.78781,2538.5,2538.3,3.99564]
[1750428200977,0.78781,2538.5,2538.4,0.78783]
[1750428201170,0.78783,2538.4,2538.3,5.3189]
[1750428201882,0.78783,2538.4,2538.3,2.1111]
[1750428202181,0.78787,2538.3,2538.1,12.69891]
[1750428202383,0.78786,2538.3,2538.2,0.78789]
[1750428202575,0.78789,2538.2,2538.1,7.0596]
[1750428202776,0.78788,2538.3,2538.1,7.84751]
[1750428202976,0.78788,2538.3,2538.2,2.0596]
[1750428203172,0.78788,2538.3,2538.2,2.84749]
[1750428203378,0.78788,2538.3,2538.2,2.0596]
[1750428203683,25.227,2538.7,2538.3,0.78785]
[1750428203883,12.2221,2538.8,2538.2,5.2674]
[1750428204080,25.223,2538.7,2538.3,2.0596]
[1750428204280,25.223,2538.7,2538.1,5.78791]
[1750428204486,0.78789,2538.2,2538.1,5.78791]
[1750428204687,4.07167,2538.7,2538.1,5.0]
[1750428204987,0.78786,2538.3,2538.2,2.84747]
[1750428205387,0.78789,2538.2,2538.1,5.0]
[1750428205683,0.78788,2538.3,2538.1,5.0]
[1750428205983,0.78789,2538.2,2538.1,7.0701]
[1750428206481,0.78789,2538.2,2538.1,5.0]
[1750428207084,15.15171807,2538.2,2538.1,5.0]
[1750428207289,20.15171807,2538.2,2538.1,5.0]
[1750428207581,46.6257752,2538.2,2538.1,5.0]
[1750428207782,46.6257752,2538.2,2538.1,4.04698]
[1750428207978,0.78801,2537.8,2537.7,3.1524]
[1750428208184,48.52391102,2537.8,2537.7,2.30102]
[1750428208383,0.78823,2537.1,2537.0,2.91455]
[1750428208589,0.78823,2537.1,2537.0,5.00175]
[1750428208888,0.78818,2537.3,2537.2,0.7882]
[1750428209388,25.215,2537.5,2537.2,3.2078]
[1750428209576,0.78815,2537.4,2537.3,2.87537]
[1750428209777,26.00309,2537.6,2537.5,0.78811]
[1750428209976,26.00309,2537.6,2537.3,2.0872]
[1750428209977,0.78814,2537.4,2537.3,2.0872]
[1750428210182,27.18523,2537.6,2537.1,0.78821]
[1750428210388,0.78818,2537.3,2537.2,0.78819]
[1750428210878,0.78818,2537.3,2537.1,7.0872]
[1750428211083,25.215,2537.6,2537.2,5.295]
[1750428211289,0.78817,2537.3,2537.2,5.295]
[1750428211483,27.18521,2537.6,2537.2,6.08318]
[1750428211684,0.78815,2537.4,2537.3,0.78816]
[1750428212180,10.01817458,2537.7,2537.5,0.78811]
[1750428212488,0.78814,2537.4,2537.3,2.0029]
[1750428212683,0.78813,2537.5,2537.3,2.79105]
[1750428213089,0.78813,2537.5,2537.4,0.78814]
[1750428213289,25.215,2537.6,2537.3,2.79105]
[1750428213492,0.78814,2537.4,2537.3,2.79105]
[1750428213687,0.78813,2537.5,2537.3,2.79105]
[1750428213883,26.0031,2537.6,2537.3,2.0029]
[1750428214082,0.78809,2537.6,2537.3,2.0029]
[1750428214285,28.4228,2537.8,2537.3,2.0029]
[1750428214481,25.215,2537.8,2537.3,2.0029]
[1750428214685,10.01817458,2537.6,2537.3,2.0029]
[1750428214886,11.98839458,2537.6,2537.2,0.7882]
[1750428215286,0.78817,2537.3,2537.2,0.7882]
[1750428215694,0.78815,2537.4,2537.3,0.78816]
[1750428215990,0.78813,2537.5,2537.4,0.78814]
[1750428216193,0.78807,2537.7,2537.2,10.92909]
[1750428216387,0.78808,2537.6,2537.5,0.78809]
[1750428216588,0.78806,2537.7,2537.3,2.0596]
[1750428216886,5.17785,2537.8,2537.3,2.0596]
[1750428217090,7.25785,2537.8,2537.3,2.84776]
[1750428217488,0.7881,2537.6,2537.3,2.0596]
[1750428217688,0.78806,2537.7,2537.6,0.78807]
[1750428217889,3.99583,2537.8,2537.7,0.78804]
[1750428218089,3.99583,2537.8,2537.4,3.1528]
[1750428218090,4.46915178,2537.8,2537.4,3.1528]
[1750428218286,3.2078,2537.8,2537.5,0.78809]
[1750428218487,0.78808,2537.6,2537.5,0.78809]
[1750428218687,3.2078,2537.8,2537.4,3.1528]
[1750428218688,0.78811,2537.5,2537.4,3.1528]
[1750428219591,0.78814,2537.4,2537.3,0.78816]
[1750428219995,0.7881,2537.6,2537.5,0.78811]
[1750428220196,1.26291193,2537.7,2537.5,0.78809]
[1750428220387,16.91717458,2537.8,2537.5,0.78809]
[1750428220591,1.26299253,2537.7,2537.5,0.78809]
[1750428220791,0.78806,2537.7,2537.6,0.78807]
[1750428220987,1.26319455,2537.7,2537.6,0.78808]
[1750428221195,1.26388481,2537.7,2537.6,0.78808]
[1750428221393,0.78795,2538.0,2537.9,0.78797]
[1750428221701,1.26401833,2538.0,2537.9,0.78798]
[1750428222187,1.26401833,2538.0,2537.8,0.788]
[1750428222392,1.26401833,2538.0,2537.6,4.14549]
[1750428222393,0.78797,2538.0,2537.9,0.78798]
[1750428222597,0.78801,2537.9,2537.8,0.78799]
[1750428222793,2.05271347,2537.9,2537.8,0.78799]
[1750428223398,1.26470347,2537.9,2537.8,0.78799]
[1750428223598,2.05268347,2537.9,2537.8,0.78799]
[1750428224093,1.26470347,2537.9,2537.8,3.99579]
[1750428224294,0.78784,2538.4,2538.3,0.78784]
[1750428224602,1.26529347,2538.4,2537.9,8.876]
[1750428224900,0.78795,2538.1,2538.0,0.78794]
[1750428225396,0.78798,2537.9,2537.8,3.2078]
[1750428225703,25.99488,2538.3,2538.2,0.78789]
[1750428225901,26.47165689,2538.3,2538.2,0.78789]
[1750428226198,26.47165689,2538.3,2537.9,1.977]
[1750428226199,0.78795,2538.0,2537.9,1.977]
[1750428226402,0.78794,2538.1,2538.0,0.78794]
[1750428226694,1.26469954,2538.2,2538.0,1.96987]
[1750428226901,25.207,2538.3,2538.1,2.8025]
[1750428227099,1.26467062,2538.2,2538.1,2.8025]
[1750428227297,1.26467062,2538.2,2538.1,0.7879]
[1750428227498,0.78793,2538.1,2538.0,0.78793]
[1750428227698,1.26467062,2538.1,2538.0,0.78793]
[1750428228007,2.05259062,2538.1,2538.0,0.78793]
[1750428228306,1.26467062,2538.1,2538.0,0.78795]
[1750428228699,25.99487,2538.3,2537.8,7.19242]
[1750428229005,1.26478994,2538.2,2538.1,0.78792]
[1750428229607,2.05267994,2538.2,2538.1,0.78792]
[1750428230502,0.78796,2538.0,2537.9,0.78796]
[1750428231500,35.22517458,2538.3,2537.8,17.1204]
[1750428231704,2.05241208,2538.2,2538.1,0.78792]
[1750428231900,0.78797,2538.0,2537.9,0.78796]
[1750428232500,0.78793,2538.1,2538.0,0.78793]
[1750428232705,1.26410537,2538.2,2537.8,10.2224]
[1750428233007,1.26410537,2538.1,2538.0,0.78794]
[1750428233503,25.99487,2538.3,2537.8,12.19243]
[1750428233707,25.99487,2538.3,2538.2,0.78789]
[1750428234007,1.26426708,2538.3,2538.2,0.78789]
[1750428235509,25.198,2538.6,2538.5,0.7878]
[1750428235708,2.05219799,2538.6,2538.5,0.7878]
[1750428238806,3.2078,2539.4,2539.3,0.78752]
[1750428239313,0.78758,2539.2,2539.1,2.0642]
[1750428239712,0.78763,2539.1,2538.8,6.884]
[1750428240105,0.7876,2539.2,2538.8,8.9188]
[1750428240306,0.7876,2539.2,2539.0,0.78764]
[1750428240603,0.06933781,2539.1,2539.0,0.78764]
[1750428241214,0.06933781,2539.1,2539.0,3.99544]
[1750428241710,0.78757,2539.3,2539.1,0.78761]
[1750428241913,29.18834,2539.4,2539.3,0.78755]
[1750428242212,28.4008,2539.4,2539.3,0.78755]
[1750428243711,3.2078,2539.4,2539.3,0.78755]
[1750428244605,0.78738,2539.9,2539.4,1.96878]
[1750428244805,3.2078,2540.0,2539.9,0.78736]
[1750428245006,1.9681,2540.3,2539.6,3.2078]
[1750428245205,30.35887,2540.4,2539.7,1.9855]
[1750428245411,10.01817458,2540.1,2539.9,5.78734]
[1750428245601,13.22597458,2540.1,2540.0,0.78733]
[1750428245801,3.99501,2540.4,2540.2,0.78727]
[1750428246005,29.17802,2540.4,2540.2,0.78726]
[1750428246206,29.17802,2540.4,2540.0,2.0313]
[1750428246404,38.40897458,2540.4,2540.0,2.0313]
[1750428246606,28.3908,2540.4,2540.1,0.78728]
[1750428246806,28.3908,2540.4,2540.1,0.78729]
[1750428247009,0.78729,2540.2,2540.0,6.02641]
[1750428247211,0.78729,2540.2,2540.1,0.7873]
[1750428247419,28.3908,2540.4,2540.1,0.7873]
[1750428247420,0.78726,2540.3,2540.1,0.7873]
[1750428247607,3.2078,2540.4,2540.0,3.2078]
[1750428247809,0.78727,2540.3,2540.1,0.78729]
[1750428248106,3.2078,2540.4,2540.0,3.2078]
[1750428248304,0.78729,2540.2,2540.0,3.99512]
[1750428248508,25.178,2540.5,2540.0,3.99512]
[1750428248509,27.14597,2540.5,2540.0,3.99512]
[1750428248715,0.78724,2540.3,2540.2,0.78726]
[1750428249018,0.78723,2540.4,2540.2,0.78726]
[1750428249216,25.175,2540.5,2540.3,0.78724]
[1750428249414,0.78721,2540.4,2540.3,0.78724]
[1750428249714,0.78724,2540.3,2540.2,1.9405]
[1750428249919,0.78724,2540.3,2540.2,2.72777]
[1750428250208,25.175,2540.5,2540.2,1.9405]
[1750428250511,0.78724,2540.3,2540.2,1.9405]
[1750428251215,0.78723,2540.4,2540.2,2.72776]
[1750428251409,25.173,2540.6,2540.2,2.72776]
[1750428251610,0.78723,2540.4,2540.2,1.9405]
[1750428251916,0.78724,2540.3,2540.2,1.9405]
[1750428252614,1.96788,2540.6,2540.2,1.9405]
[1750428252910,0.7873,2540.1,2540.0,10.87612]
[1750428253513,0.7873,2540.1,2540.0,3.2078]
[1750428254419,0.7873,2540.1,2540.0,3.99513]
[1750428254805,0.7873,2540.1,2540.0,3.2078]
[1750428255011,0.7873,2540.1,2540.0,3.99513]
[1750428255515,0.7873,2540.1,2540.0,3.2078]
[1750428256119,0.78736,2539.9,2539.8,3.1498]
[1750428256321,0.78734,2540.0,2539.9,0.78734]
[1750428256616,0.78736,2539.9,2539.8,3.1498]
[1750428257022,0.78736,2539.9,2539.8,1.88536201]
[1750428257215,0.78755,2539.3,2539.2,0.78756]
[1750428257910,37.24657458,2539.7,2539.3,0.78754]
[1750428258114,27.2284,2539.7,2539.1,48.5938]
[1750428258314,0.7875,2539.5,2539.4,0.7875]
[1750428259721,27.2284,2539.7,2539.2,1.96895]
[1750428259915,25.95145,2539.7,2539.2,1.96895]
[1750428260124,3.2078,2539.8,2539.6,0.78745]
[1750428260319,0.78742,2539.7,2539.6,0.78745]
[1750428261211,0.78746,2539.6,2539.3,1.9514]
[1750428261521,0.78747,2539.6,2539.5,0.78748]
[1750428261713,0.78743,2539.7,2539.3,1.96887]
[1750428261914,17.50112704,2540.4,2539.5,1.96872]
[1750428262123,1.25049882,2540.3,2540.2,0.78727]
[1750428263417,25.94516,2540.6,2540.5,0.78718]
[1750428263622,26.41226528,2540.6,2540.5,0.78718]
[1750428263825,1.25426528,2540.6,2540.5,0.78718]
[1750428264323,1.25426528,2540.6,2540.5,2.74368]
[1750428264527,5.12506246,2541.2,2540.6,1.96781]
[1750428264727,26.40979758,2541.1,2540.9,0.78703]
[1750428264930,1.25479758,2541.0,2540.9,0.78703]
[1750428265914,2.04181758,2541.0,2540.9,0.78705]
[1750428266115,1.25479758,2541.0,2540.9,0.78705]
[1750428266518,2.04181758,2541.0,2540.8,0.78706]
[1750428266719,1.25479758,2540.9,2540.8,0.78708]
[1750428266920,1.25606857,2540.9,2540.8,0.78708]
[1750428268022,1.25606857,2540.9,2540.7,3.99489]
[1750428268229,1.25606857,2540.8,2540.5,2.74465]
[1750428268430,2.04319857,2540.7,2540.3,6.865]
[1750428268630,1.25606857,2540.6,2540.5,0.78718]
[1750428269027,1.25607409,2540.6,2540.5,0.78716]
[1750428269228,1.25607409,2540.6,2540.5,0.78718]
[1750428270625,2.04322409,2540.6,2540.4,0.78718]
[1750428270826,0.78722,2540.4,2540.3,0.78723]
[1750428271023,0.78727,2540.2,2540.1,5.2353]
[1750428271222,0.7873,2540.1,2540.0,2.9475]
[1750428271427,16.04137458,2540.1,2540.0,2.9475]
[1750428271627,0.78745,2539.6,2539.5,0.78749]
[1750428272232,0.7875,2539.5,2539.3,3.2078]
[1750428272533,0.78749,2539.5,2539.4,0.7875]
[1750428272727,0.78748,2539.6,2539.4,0.7875]
[1750428272924,1.25450197,2539.5,2539.4,0.7875]
[1750428276322,1.25450197,2539.5,2539.3,0.78754]
[1750428276534,2.04204197,2539.4,2539.3,0.78754]
[1750428276733,1.25450197,2539.4,2539.3,0.78754]
[1750428277333,1.25671005,2539.4,2539.3,0.78753]
[1750428278326,1.25671005,2539.4,2539.3,0.78755]
[1750428279237,1.25671005,2539.4,2539.3,3.99535]
[1750428279434,1.25671005,2539.4,2539.3,5.97835]
[1750428282237,29.1372,2539.8,2539.6,0.78743]
[1750428282438,1.25653278,2539.7,2539.6,0.78743]
[1750428283537,1.25653278,2539.7,2539.6,3.99523]
[1750428283840,1.643,2539.9,2539.8,0.78739]
[1750428284045,0.7874,2539.8,2539.7,0.78741]
[1750428284345,1.25770903,2539.8,2539.7,0.78741]
[1750428284539,2.04509863,2539.8,2539.7,0.7874]
[1750428285041,0.78742,2539.7,2539.6,3.2078]
[1750428285338,4.8508,2539.9,2539.6,0.78745]
[1750428285540,1.25769351,2539.8,2539.7,0.78742]
[1750428286034,0.78734,2540.0,2539.6,3.2078]
[1750428286238,25.92034,2540.0,2539.9,0.78736]
[1750428286439,26.39071748,2540.0,2539.9,0.78736]
[1750428286739,1.25771748,2540.0,2539.9,0.78736]
[1750428286934,1.25771748,2540.0,2539.8,2.1623]
[1750428287135,1.25771748,2539.9,2539.8,2.1623]
[1750428287336,2.04505748,2540.0,2539.8,2.1623]
[1750428287538,1.25771748,2539.9,2539.8,2.94969]
[1750428287738,1.25779963,2539.9,2539.8,2.94969]
[1750428287943,25.91932,2540.1,2540.0,0.78733]
[1750428288242,0.78735,2540.0,2539.9,0.78734]
[1750428288635,25.13,2540.2,2539.9,3.2078]
[1750428288836,2.04526898,2540.1,2540.0,2.84833]
[1750428289039,0.78733,2540.0,2539.9,3.2078]
[1750428289444,0.78733,2540.0,2539.9,3.99516]
[1750428289641,0.78733,2540.0,2539.9,3.99514]
[1750428291847,25.91728,2540.2,2540.1,0.7873]
[1750428292151,15.53305704,2541.0,2540.1,1.96821]
[1750428292350,0.78713,2540.7,2540.2,4.00605]
[1750428292658,0.78713,2540.7,2540.6,0.78714]
[1750428292950,0.7871,2540.8,2540.7,0.78711]
[1750428293153,3.2078,2541.0,2540.8,0.78708]
[1750428293344,25.123,2540.9,2540.3,4.1861]
[1750428293544,0.78716,2540.6,2540.3,4.1861]
[1750428293748,0.78713,2540.7,2540.5,0.78718]
[1750428294251,0.78714,2540.6,2540.5,0.78718]
[1750428294650,0.78721,2540.4,2540.3,2.1482]
[1750428294952,37.17727458,2540.9,2540.5,0.78716]
[1750428295246,37.17727458,2540.9,2540.3,2.1482]
[1750428295449,39.14492458,2540.9,2540.4,0.78719]
[1750428295950,39.14492458,2540.9,2540.5,0.78718]
[1750428296146,0.78713,2540.7,2540.5,0.78718]
[1750428296350,27.1591,2540.9,2540.5,0.78716]
[1750428296549,0.78714,2540.6,2540.3,2.1482]
[1750428296740,0.78714,2540.6,2540.5,0.78718]
[1750428296945,0.78714,2540.6,2540.3,4.1132]
[1750428297354,27.1591,2540.9,2540.3,4.1132]
[1750428297652,0.78716,2540.6,2540.3,2.1482]
[1750428297850,0.78717,2540.6,2540.4,0.7872]
[1750428298056,0.78717,2540.6,2540.5,0.78718]
[1750428298351,30.76976,2540.9,2540.4,0.78719]
[1750428298550,0.78716,2540.6,2540.5,0.78717]
[1750428298854,0.78718,2540.5,2540.3,2.1482]
[1750428299047,0.78723,2540.4,2540.2,8.2078]
[1750428299249,25.113,2540.5,2540.2,8.99506]
[1750428299450,0.78724,2540.3,2540.2,8.2078]
[1750428299656,0.78724,2540.3,2540.2,5.0]
[1750428300350,2.88474,2540.3,2540.2,5.0]
[1750428303358,0.78733,2540.0,2539.9,0.78734]
[1750428303559,0.78727,2540.2,2540.1,0.7873]
[1750428303763,25.107,2540.3,2540.2,0.78727]
[1750428303953,26.35691806,2540.3,2540.2,0.78727]
[1750428304148,0.78729,2540.2,2540.1,0.78729]
[1750428304363,2.03720806,2540.2,2540.1,0.7873]
[1750428304553,1.24991806,2540.2,2540.1,0.7873]
[1750428304760,2.03718806,2540.2,2540.1,0.7873]
[1750428304959,1.24991806,2540.2,2540.1,0.7873]
[1750428305157,0.78726,2540.3,2540.2,0.78727]
[1750428305463,0.78726,2540.3,2540.1,0.78728]
[1750428305464,0.78728,2540.2,2540.1,0.78728]
[1750428305650,0.78726,2540.3,2540.2,0.78726]
[1750428305856,0.78727,2540.2,2540.1,0.78728]
[1750428306261,0.78721,2540.4,2540.2,0.78724]
[1750428306461,0.78721,2540.4,2540.3,4.1009]
[1750428306662,2.03731765,2540.4,2540.3,4.1009]
[1750428307066,0.78727,2540.2,2540.1,0.78728]
[1750428307567,25.105,2540.5,2540.2,0.78726]
[1750428307568,0.78726,2540.3,2540.2,0.78726]
[1750428307863,2.0377152,2540.3,2540.2,0.78726]
[1750428308061,1.2504552,2540.3,2540.2,0.78726]
[1750428308264,2.0376952,2540.3,2540.1,0.78727]
[1750428308467,0.78724,2540.3,2540.2,0.78727]
[1750428308663,2.03782727,2540.4,2540.3,0.78724]
[1750428308864,2.03782727,2540.4,2540.1,2.1438]
[1750428309165,1.25059727,2540.3,2540.2,0.78725]
[1750428309364,1.25172675,2540.4,2540.3,0.78724]
[1750428309572,1.25172675,2540.4,2540.3,14.01321458]
[1750428309761,1.25172675,2540.4,2540.3,25.85621458]
[1750428309968,0.78704,2541.0,2540.5,1.96793]
[1750428310267,1.96694,2541.8,2540.9,10.01817458]
[1750428310571,0.78699,2541.1,2541.0,2.1438]
[1750428310762,27.06531,2541.4,2540.8,3.2078]
[1750428311066,25.098,2541.4,2540.8,3.2078]
[1750428311261,0.78697,2541.2,2540.9,2.1438]
[1750428311458,0.78697,2541.2,2541.0,0.78699]
[1750428311965,25.098,2541.4,2541.0,0.78699]
[1750428312165,3.2078,2541.1,2540.2,3.2078]
[1750428312362,0.78727,2540.2,2539.9,3.99515]
[1750428312664,0.78727,2540.2,2539.9,3.2078]
[1750428313063,0.78727,2540.2,2539.9,3.99515]
[1750428313259,3.2078,2540.3,2539.9,3.2078]
[1750428313465,0.78727,2540.2,2539.9,3.99514]
[1750428313662,0.78727,2540.2,2539.8,2.78577]
[1750428314472,0.78727,2540.2,2539.8,1.9984]
[1750428314770,0.78727,2540.2,2539.8,2.78579]
[1750428314971,0.78727,2540.2,2539.8,1.9984]
[1750428315469,0.78727,2540.2,2539.7,2.91292]
[1750428315669,0.78727,2540.2,2539.9,2.9055]
[1750428318575,0.78727,2540.2,2539.9,3.69285]
[1750428318968,0.78727,2540.2,2539.9,2.9055]
[1750428319478,0.78727,2540.2,2539.9,3.69285]
[1750428319671,0.78733,2540.0,2539.9,3.69285]
[1750428320670,0.78733,2540.0,2539.9,2.9055]
[1750428321476,0.78723,2540.4,2540.2,0.78725]
[1750428321680,0.78723,2540.4,2540.3,1.9809]
[1750428322178,1.24646411,2540.4,2540.3,2.76814]
[1750428322378,1.24646411,2540.4,2540.3,4.88454]
[1750428322675,0.78721,2540.4,2540.3,4.88452]
[1750428322877,1.24752264,2540.4,2540.3,4.88452]
[1750428323774,2.03473264,2540.4,2539.9,7.9055]
[1750428323980,0.78732,2540.1,2539.9,12.1517]
[1750428324182,6.843,2540.2,2539.9,12.93905]
[1750428324382,0.78733,2540.0,2539.9,12.1517]
[1750428324876,0.78732,2540.1,2539.9,12.1517]
[1750428325271,0.78733,2540.0,2539.9,12.1517]
[1750428325679,0.78733,2540.0,2539.9,12.93906]
[1750428325978,0.78733,2540.0,2539.9,12.1517]
[1750428327978,0.78733,2540.0,2539.9,12.93906]
[1750428328679,0.78733,2540.0,2539.9,12.1517]
[1750428329274,0.78733,2540.0,2539.9,12.93904]
[1750428329475,0.78732,2540.1,2540.0,0.78732]
[1750428329680,2.43022,2540.4,2540.3,0.78724]
[1750428329883,27.97278714,2540.4,2540.2,3.2078]
[1750428330082,27.51223,2540.4,2540.3,2.87014]
[1750428330274,3.67805205,2540.4,2540.3,2.87014]
[1750428331081,1.24782205,2540.4,2540.3,12.88831458]
[1750428331276,6.825,2540.9,2540.3,12.88831458]
[1750428331277,0.7871,2540.8,2540.7,0.78709]
[1750428331477,2.03520819,2540.8,2540.7,0.78709]
[1750428331676,2.03518819,2540.8,2540.7,0.78709]
[1750428332577,1.24810819,2540.8,2540.7,0.78709]
[1750428332782,1.24810819,2540.8,2540.7,3.99489]
[1750428332984,31.903,2541.2,2541.0,0.787]
[1750428333278,2.03514594,2541.1,2541.0,0.787]
[1750428333680,1.24812594,2541.1,2541.0,0.787]
[1750428333982,1.24812594,2541.1,2541.0,3.9948]
[1750428334183,25.076,2541.4,2541.3,0.7869]
[1750428334577,6.825,2541.5,2541.4,0.7869]
[1750428334879,0.78693,2541.4,2541.1,2.0064]
[1750428335082,25.075,2541.6,2541.2,0.78696]
[1750428335381,0.78691,2541.4,2541.2,0.78696]
[1750428335581,0.78692,2541.4,2541.3,0.78693]
[1750428335781,0.78692,2541.4,2541.1,2.0064]
[1750428335782,0.78693,2541.3,2541.1,4.0719]